Cogmind - Beta 15 @@@ ROGUE MODE // 2025.08.14 @ 03:56:49 Player: shapeshifter Result: Destroyed by VH-EXX(R) with Subdweller Laser Performance ------------- Evolutions (0) 0 Regions Visited (3) 600 Robots Destroyed (26) 130 Value Destroyed (678) 678 Prototype IDs (13) 260 Alien Tech Used (0) 0 Bonus (-48) -48 TOTAL SCORE: 1620 Bonus ------- Follower Combat Kills 102 Friendly Fire -150 Cogmind --------- Core Integrity 0/250 Matter 266/300 Energy 79/100 System Corruption 8% Temperature Cool (6) Movement Rolling (110) Location -10/Subcaves Parts ------- > --- POWER (1) -------- (None) > --- PROPULSION (2) --- Spiked Treads Subdweller Monowheel > --- UTILITY (2) ------ Medium Storage Unit Core Shielding > --- WEAPON (2) ------- Subdweller Machine Gun Subdweller Machine Gun > --- INVENTORY (10) --- Flightbrick Subdweller Optics Subdweller Beam Cannon Grenade Launcher Multitool Makeshift Axe Makeshift Sword Peak State ------------ > --- POWER ------------ (None) > --- PROPULSION ------- Spiked Treads Subdweller Monowheel > --- UTILITY ---------- Medium Storage Unit Core Shielding > --- WEAPON ----------- Subdweller Machine Gun Subdweller Machine Gun > --- INVENTORY -------- Flightbrick Subdweller Optics Subdweller Beam Cannon Grenade Launcher Multitool Makeshift Axe Makeshift Sword [Rating: 15] Favorites ----------- Power Light Ion Engine Engine Light Ion Engine Propulsion Light Treads Treads Light Treads Wheel Subdweller Monowheel Utility Medium Storage Unit Device Seismic Detector Storage Medium Storage Unit Protection Core Shielding Weapon Light Assault Rifle Energy Gun Medium Laser Ballistic Gun Light Assault Rifle Launcher Grenade Launcher Slashing Weapon Makeshift Sword Build | -11 -10 -10 -10 ------- Run | Yrd Mat Min Sub Slots Evolved . | . . . . Power . | . . . . Propulsion . | . . . . Utility . | . . . . Weapon . | . . . . Parts Attached 25 | 8 10 1 6 Power 4 | 1 2 1 . Engine 4 | 1 2 1 . Core . | . . . . Reactor . | . . . . Propulsion 7 | 2 3 . 2 Treads 6 | 2 3 . 1 Leg . | . . . . Wheel 1 | . . . 1 Hover . | . . . . Flight . | . . . . Utility 6 | 2 3 . 1 Device 2 | 1 . . 1 Storage 3 | 1 2 . . Processor . | . . . . Hackware . | . . . . Protection 1 | . 1 . . Artifact . | . . . . Weapon 8 | 3 2 . 3 Energy Gun 2 | 2 . . . Energy Cannon . | . . . . Ballistic Gun 4 | 1 1 . 2 Ballistic Cannon . | . . . . Launcher 1 | . 1 . . Special Weapon . | . . . . Impact Weapon . | . . . . Slashing Weapon 1 | . . . 1 Piercing Weapon . | . . . . Special Melee Weapon . | . . . . Unidentified Prototypes . | . . . . Parts Lost 6 | . 2 . 4 Power 1 | . . . 1 Propulsion 4 | . 2 . 2 Utility 1 | . . . 1 Weapon . | . . . . Highest Loss Streak 2 | . 2 . 1 To Critical Strikes . | . . . . Average Backups 8 | 4 9 9 8 Power 1 | . 1 1 . Propulsion 1 | 2 2 . 1 Utility 3 | . 3 5 3 Weapon 1 | 1 . 1 2 Tool/Special . | . . . . Unused Backups 18 | . 5 . 13 Power 2 | . . . 2 Propulsion 4 | . 3 . 1 Utility 8 | . 2 . 6 Weapon 2 | . . . 2 Tool/Special 2 | . . . 2 Average Slot Usage (%) 98 | . 99 100 93 Engine 12 | . 14 14 9 Treads 27 | . 27 28 26 Device 1 | . 4 . 1 Storage 14 | . 14 14 14 Protection 12 | . 9 14 12 Energy Gun 1 | . 3 . . Ballistic Gun 25 | . 24 28 22 Launcher 1 | . . . 4 Peak Build Rating 15 | 7 8 8 15 Average Rating 8 | 4 7 8 10 On Entrance 5 | . 7 8 8 Naked Turns . | . . . . Heaviest Build 22 | 14 19 17 22 Greatest Support 40 | 40 40 40 40 Greatest Overweight (x) . | . . . . Average Overweight (x) . | . . . . Largest Inventory Capacity 10 | 8 10 10 10 Average Capacity 9 | 7 9 10 10 Most Carried 10 | 8 10 10 10 Average Carried 9 | 4 9 9 9 Final Capacity 10 | 8 10 10 10 Final Carried 10 | 5 8 10 10 Class Distribution -------------------- 100% | Mutant Dominant Class ---------------- Mutant | -10/Materials Mutant | -10/Mines Mutant | -10/Subcaves Resources | -11 -10 -10 -10 ----------- Run | Yrd Mat Min Sub Matter Collected 977 | 298 323 101 255 Remotely . | . . . . Salvage Created 873 | 61 716 27 69 Parts 55 | 7 41 5 2 Haulers Intercepted 1 | . 1 . . Recyclers Shooed 3 | 1 2 . . Parts Field Recycled . | . . . . Retrieved Matter . | . . . . Parts Self-Destructed 12 | . . . 12 Prevented . | . . . . Kills | -11 -10 -10 -10 ------- Run | Yrd Mat Min Sub Combat Hostiles Destroyed 16 | . 14 1 1 Guns 16 | . 14 1 1 Classes Destroyed 9 | 1 5 2 1 Worker 1 | . . 1 . Builder 1 | . 1 . . Tunneler 3 | 3 . . . Hauler 1 | . 1 . . Operator 1 | . 1 . . Watcher 2 | . 2 . . Swarmer 1 | . . 1 . Grunt 15 | . 14 . 1 Subdweller 1 | . . . 1 Best Kill Streak 3 | 2 3 1 1 Combat Bots Only 2 | . 2 1 1 Max Kills in Single Turn 1 | 1 1 1 1 Gunslinging . | . . . . Exploded . | . . . . Melee . | . . . . Uniques/NPCs Destroyed . | . . . . Combat | -11 -10 -10 -10 -------- Run | Yrd Mat Min Sub Hostile Shots Fired 97 | . 73 . 24 Missed 14 | . 10 . 4 Hits 83 | . 63 . 20 Projectile 83 | . 63 . 20 Critical Strikes 2 | . 2 . . Damage Taken 1539 | . 816 . 723 Core 258 | . 117 . 141 Absorbed by Shields . | . . . . Redirected to Shielding 26 | . 12 . 14 Core Remaining (%) 100 | 100 . . . Volleys Fired 111 | 18 75 4 14 Largest 2 | 2 2 2 2 Hottest 70 | 60 70 40 60 Shots Fired 218 | 33 152 11 22 Gun 211 | 33 151 11 16 Cannon . | . . . . Launcher 7 | . 1 . 6 Special . | . . . . Kinetic 164 | 18 119 11 16 Thermal 47 | 15 32 . . Explosive 7 | . 1 . 6 Electromagnetic . | . . . . Robot Hit Streak 12 | 12 12 4 6 Robot Miss Streak 3 | 2 3 . 3 Penetration Max . | . . . . Secondary Targets . | . . . . Shots Hit Robots 139 | 22 105 3 9 Core Hits 60 | 5 48 2 5 Critical Kills . | . . . . Critical Parts Destroyed . | . . . . Critical Strikes 1 | . 1 . . Burn 1 | . 1 . . Melee Attacks 1 | . . . 1 Impact . | . . . . Slashing 1 | . . . 1 Piercing . | . . . . Sneak Attacks . | . . . . Combat Hostiles . | . . . . Follow-up Attacks . | . . . . Damage Inflicted 1898 | 227 1160 34 477 Guns 1575 | 227 1160 34 154 Cannons . | . . . . Explosions 323 | . . . 323 Melee . | . . . . Ramming . | . . . . Kinetic 1138 | 92 858 34 154 Thermal 437 | 135 302 . . Explosive 323 | . . . 323 Electromagnetic . | . . . . Impact . | . . . . Slashing . | . . . . Piercing . | . . . . Highest Corruption 8 | . 3 3 8 Average Corruption 3 | . 1 3 6 Corruption Purged . | . . . . Corruption Blocked . | . . . . Effects 102 | . 16 46 40 Message Errors 19 | . 3 6 10 Matter Fused 26 | . 7 8 11 Heat Flow Errors 14 | . . 10 4 Energy Discharges 13 | . 2 6 5 Parts Fused 1 | . . 1 . Data Loss (minor) 10 | . . 7 3 Data Loss (major) 7 | . 1 4 2 Misfires 10 | . 3 3 4 Alerts 2 | . . 1 1 Overload Shots . | . . . . Overflow Damage 7 | . . . 7 Projectiles . | . . . . Explosions 7 | . . . 7 Melee . | . . . . Knockbacks . | . . . . Impact . | . . . . Kinetic . | . . . . Secondary . | . . . . Self-Inflicted Damage 70 | . . . 70 Shots 3 | . . . 3 Rammed . | . . . . Targets Rammed . | . . . . Kicked . | . . . . Crushed . | . . . . Highest Temperature 289 | 40 166 289 248 Average Temperature 68 | 19 53 103 115 Received Heat Transfer 621 | . 501 . 120 Effects 3 | . . 3 . Energy Bleed 1 | . . 1 . Interference 2 | . . 2 . Siege Activations . | . . . . Martial Activations . | . . . . Shielding Activations . | . . . . Robots Disrupted . | . . . . Combat Hostiles . | . . . . Robots Corrupted . | . . . . Combat Hostiles . | . . . . Parts Fried . | . . . . Impact Corruptions . | . . . . Robots Melted . | . . . . Combat Hostiles . | . . . . Parts Melted 3 | . 3 . . Heat Transferred 1262 | 300 962 . . Parts Sabotaged . | . . . . Parts Stolen . | . . . . Parts Stripped . | . . . . Power Chain Reactions . | . . . . Alert | -11 -10 -10 -10 ------- Run | Yrd Mat Min Sub Maximum Alert Level . | . . . . Low Security (%) 100 | 100 100 100 . Level 1 . | . . . . Level 2 . | . . . . Level 3 . | . . . . Level 4 . | . . . . Level 5 . | . . . . High Security . | . . . . Max Security . | . . . . Peak Influence 91 | 5 80 91 . Initial 12 | . . 12 . Average 13 | 1 19 8 . Influence Increases 693 | 15 456 102 120 Destroy 0b10 Robot/C 420 | . 280 60 80 Destroy 0b10 Robot/NC 45 | 15 25 5 . Destroy Leader 96 | . 76 10 10 Allied During Kill 36 | . . 21 15 Successful Hack 26 | . 20 6 . Disable Machine 15 | . 15 . . Destroy Structure 10 | . 10 . . Lose Combat Pursuer 45 | . 30 . 15 Influence Decreases 693 | 15 424 134 120 Entered New Map 20 | . . 20 . Time Decay 628 | 15 414 114 85 Lost Part 10 | . 10 . . Lost Ally 35 | . . . 35 Squads Dispatched 3 | . 3 . . Investigation 1 | . 1 . . Extermination . | . . . . Reinforcement 2 | . 2 . . Assault . | . . . . Garrison . | . . . . Intercept . | . . . . Searches Triggered . | . . . . Construction Impeded . | . . . . Haulers Reinforced . | . . . . Active Scanning Responses . | . . . . Cargo Convoy Interrupts . | . . . . Stealth | -11 -10 -10 -10 --------- Run | Yrd Mat Min Sub Distress Signals 3 | . 3 . . Communications Jammed . | . . . . Distress Signals . | . . . . Times Spotted 42 | . 29 2 11 Peak Tracking Total 4 | . 4 2 3 Tactical Retreats 3 | . 2 . 1 Traps | -11 -10 -10 -10 ------- Run | Yrd Mat Min Sub Traps Triggered 4 | . 3 . 1 Indirectly . | . . . . Trap Hack Attempts . | . . . . Triggered . | . . . . Disarmed . | . . . . Reprogrammed . | . . . . Reused . | . . . . Traps Extracted . | . . . . Installed . | . . . . Triggered . | . . . . Machines | -11 -10 -10 -10 ---------- Run | Yrd Mat Min Sub Machines Disabled 3 | . 1 . 2 Max in Single Turn 1 | . 1 . 1 Machines Repaired . | . . . . Machines Dismantled . | . . . . Machines Sabotaged . | . . . . Overloaded Fab Kills . | . . . . Hacking | -11 -10 -10 -10 --------- Run | Yrd Mat Min Sub Machines Accessed 9 | . 7 1 1 Terminals 7 | . 6 1 . Fabricators . | . . . . Repair Stations . | . . . . Recycling Units 1 | . 1 . . Scanalyzers . | . . . . Garrison Access . | . . . . Total Hacks 35 | . 23 3 9 Successful 27 | . 16 2 9 Failed 8 | . 7 1 . Catastrophic . | . . . . Database Lockouts . | . . . . Manual 9 | . 8 1 . Terminals 24 | . 21 3 . Fabricators . | . . . . Repair Stations . | . . . . Recycling Units 2 | . 2 . . Scanalyzers . | . . . . Garrison Access . | . . . . Terminal Hacks 22 | . 11 2 9 Record 14 | . 5 1 8 Prototype ID Bank 1 | . 1 . . Emergency Access Points 1 | . 1 . . Registered Components 1 | . 1 . . Zone Layout 4 | . 3 1 . Proto ID Catalog 1 | . . . 1 Fabricator Hacks . | . . . . Repair Station Hacks . | . . . . Recycling Unit Hacks 2 | . 2 . . Report Inventory 1 | . 1 . . Retrieve Components 1 | . 1 . . Scanalyzer . | . . . . Garrison Access Hacks . | . . . . Unauthorized Hacks 3 | . 3 . . Terminals 3 | . 3 . . Botnet 3 | . 3 . . Fabricators . | . . . . Repair Stations . | . . . . Recycling Units . | . . . . Scanalyzers . | . . . . Garrison Access . | . . . . Data Cores Recovered . | . . . . Used . | . . . . Hacking Detections 6 | . 5 1 . Full Trace Events 2 | . 2 . . Feedback Events . | . . . . Feedback Blocked . | . . . . Robot Schematics Acquired . | . . . . Robots Built . | . . . . Authchips . | . . . . Time . | . . . . Total Robot Build Rating . | . . . . Part Schematics Acquired . | . . . . Parts Built . | . . . . Authchips . | . . . . Time . | . . . . Total Part Build Rating . | . . . . Parts Repaired . | . . . . Time . | . . . . Parts Recycled . | . . . . Recycled Matter . | . . . . Retrieved Matter . | . . . . Retrieved Components 10 | . 10 . . Parts Scanalyzed . | . . . . Part Schematics Acquired . | . . . . Parts Damaged . | . . . . Bothacking | -11 -10 -10 -10 ------------ Run | Yrd Mat Min Sub Used RIF Installer . | . . . . Robots Hacked . | . . . . Non-combat . | . . . . Combat . | . . . . Robot Hacks Applied . | . . . . Relay Couplers Released . | . . . . Fabnet Peak Effective % . | . . . . Robots Rewired . | . . . . Allies Hacked . | . . . . Hacks Repelled . | . . . . Allies | -11 -10 -10 -10 -------- Run | Yrd Mat Min Sub Total Allies 5 | . . 5 . Largest Group 5 | . . 5 5 Highest-Rated Group 82 | . . 78 82 Highest-Rated Ally 31 | . . 31 31 Total Orders . | . . . . Ally Attacks 48 | . . 13 35 Total Damage 536 | . . 113 423 Kills 8 | . . 2 6 Allies Corrupted . | . . . . Allies Melted . | . . . . Intel | -11 -10 -10 -10 ------- Run | Yrd Mat Min Sub Active Infowar (turns) 888 | 19 659 . 210 Sensors 210 | . . . 210 Seismic 678 | 19 659 . . Robot Analysis Total . | . . . . Derelict Logs Recovered 5 | . . 3 2 Drone Launches . | . . . . Drone Recoveries . | . . . . Exploration | -11 -10 -10 -10 ------------- Run | Yrd Mat Min Sub Turns Passed 6529 | 189 2211 2599 1530 Spaces Moved 3159 | 76 991 1167 925 Core 3 | 3 . . . Treads 3098 | 73 991 1167 867 Legs . | . . . . Wheels 58 | . . . 58 Hover . | . . . . Flight . | . . . . Fastest Speed 50 | 50 160 160 110 Average Speed 158 | 155 160 160 156 Slowest Speed 160 | 160 160 160 160 Overloaded Moves . | . . . . Propulsion Burnouts . | . . . . Robots Hopped . | . . . . Potential Cave-ins . | . . . . Cave-ins Triggered 1 | . . . 1 Exploration Rate (%) 67 | 6 95 100 67 Regions Visited 3 Branch Regions 2 Pre-discovered Areas 1 | . . 1 . Known Exits Taken . | . . . . Unknown Exits Taken 3 | 1 1 1 . Scrap Searched 4 | . . 1 3 Spaces Dug . | . . . . Terrain Destroyed 33 | . 9 . 24 Melee . | . . . . Projectile . | . . . . AOE 33 | . 9 . 24 Terrain Rammed . | . . . . Walls Destroyed . | . . . . Machines Disabled . | . . . . Actions | -11 -10 -10 -10 --------- Run | Yrd Mat Min Sub Total 4484 | 117 1486 1892 989 Wait 1116 | 4 376 717 19 Move 3156 | 75 990 1166 925 Hop . | . . . . Pick Up 41 | 11 18 3 9 Fast Attach 2 | 1 . . 1 Attach 15 | 7 3 . 5 Detach 3 | 1 . . 2 Swap 13 | . 9 1 3 Drop 26 | . 15 1 10 Fire 111 | 18 75 4 14 Melee 1 | . . . 1 Ram . | . . . . Kick . | . . . . Crush . | . . . . Escape Stasis . | . . . . Rewire . | . . . . Trap . | . . . . Miscellaneous . | . . . . Route ------- -11/Scrapyard -10/Materials (discovered 5 exits: [*Mat x3] / *Min x2) -10/Mines (discovered 3 exits: [*Mat x2] / *Sub) -10/Subcaves (discovered 1 exit: [*Mat]) History --------- Turn | Location | Event 9 | -11/Scrapyard | Discovered new exit (range 16) 190 | -11/Scrapyard | Entered Materials 307 | -10/Materials | Build established: Mutant 495 | -10/Materials | Discovered new exit (range 16) 584 | -10/Materials | Discovered new exit (range 15) 1003 | -10/Materials | Discovered new exit (range 9) 1497 | -10/Materials | Discovered new exit (range 4) 2098 | -10/Materials | Discovered new exit (range 9) 2401 | -10/Materials | Entered Mines 2489 | -10/Mines | A weapon hastily lodged in a ceiling crevice suddenly fell to the ground 3456 | -10/Mines | Found a hidden stash of uninstalled traps 3486 | -10/Mines | Discovered new exit (range 12) 3512 | -10/Mines | Assisted by bots powering up and referring to "LRC-V3" 3539 | -10/Mines | Learned location of Zion (-6) 3545 | -10/Mines | Discovered new exit (range 6) 3652 | -10/Mines | Found a Scrap Suit stashed away for nefarious purposes 3816 | -10/Mines | Discovered new exit (range 4) 5000 | -10/Mines | Entered Subcaves 5000 | -10/Subcaves | Accompanied by 5 allies 5005 | -10/Subcaves | Led the pair of lost Derelicts to an unsafe place 5021 | -10/Subcaves | Learned 4 Materials zone layouts 5131 | -10/Subcaves | Shifting Twisted Machinery released Riot Gun 5150 | -10/Subcaves | Shifting Twisted Machinery released Sub. Machine Gun 5612 | -10/Subcaves | Crushed by falling debris 5612 | -10/Subcaves | Core integrity fell below 50% 5619 | -10/Subcaves | Core integrity fell below 20% 5653 | -10/Subcaves | Visited 4L-MR0's lab 5685 | -10/Subcaves | Found Flightbrick 6076 | -10/Subcaves | Shifting Twisted Machinery released Flamer 6404 | -10/Subcaves | Disturbed a concealed Subdweller 6420 | -10/Subcaves | Discovered new exit (range 14) 6450 | -10/Subcaves | A swath of the cavern ceiling suddenly collapsed 6473 | -10/Subcaves | Learned Materials trap positions 6482 | -10/Subcaves | Shifting Twisted Machinery released Mak. Axe 6486 | -10/Subcaves | Shifting Twisted Machinery released Spk. Treads 6530 | -10/Subcaves | Destroyed by VH-EXX(R) with Subdweller Laser Last Messages --------------- 06394_ System corrupted: Matter fused (-6). 06404_ VH-EXX(R) angrily emerges from the Twisted Machinery. 06416_ Lgt. Treads destroyed. 06417_ System corrupted: Heat flow error (+203). 06420_ EXIT=FOUND 06437_ /H AXKZQGOW/F|XQN6|2Y7V%EJBTXXO=1C A swath of the cavern ceiling suddenly collapses. 06452_ &M 6C&BBE 7:PYNNNLETB45D1V>KEUEDIN